fUSD/lending_fUSD_20250322
["ID","MTS","AMOUNT","RATE_DAILY","PERIOD"]
[356565352,1742680265531,-483.66456102,0.00045205,120]
[356565353,1742680265541,-500.0,0.00045205,120]
[356565354,1742680265550,-500.0,0.00045205,120]
[356565355,1742680265559,-500.0,0.00045205,120]
[356565356,1742680265569,-250.35005126,0.00045205,120]
[356565357,1742680265578,-500.0,0.00045205,120]
[356565358,1742680265587,-500.0,0.00045205,120]
[356565359,1742680265597,-320.31462833,0.00045205,120]
[356565360,1742680265606,-500.0,0.00045205,120]
[356565361,1742680265616,-670.46,0.00045205,120]
[356565362,1742680265625,-500.0,0.00045205,120]
[356565363,1742680265634,-500.0,0.00045205,120]
[356565364,1742680265643,-500.0,0.00045205,120]
[356565365,1742680265652,-500.0,0.00045205,120]
[356565366,1742680265661,-500.0,0.00045205,120]
[356565367,1742680265670,-500.0,0.00045205,120]
[356565368,1742680265679,-602.75,0.00045205,120]
[356565369,1742680265690,-500.0,0.00045205,120]
[356565370,1742680265700,-500.0,0.00045205,120]
[356565371,1742680265709,-500.0,0.00045205,120]
[356565372,1742680265718,-500.0,0.00045205,120]
[356565373,1742680265727,-500.0,0.00045205,120]
[356565374,1742680265737,-500.0,0.00045205,120]
[356565375,1742680265746,-500.0,0.00045205,120]
[356565376,1742680265755,-500.0,0.00045205,120]
[356565377,1742680265764,-528.26,0.00045205,120]
[356565378,1742680265774,-500.0,0.00045205,120]
[356565379,1742680265782,-939.41,0.00045205,120]
[356565380,1742680265792,-500.0,0.00045205,120]
[356565381,1742680265801,-500.0,0.00045205,120]
[356565382,1742680265810,-500.0,0.00045205,120]
[356565383,1742680265819,-500.0,0.00045205,120]
[356565384,1742680265829,-158.17,0.0004521,120]
[356565385,1742680265838,-184.54207956,0.0004521,120]
[356565386,1742680265848,-184.54,0.0004521,120]
[356565387,1742680265857,-157.8357366,0.0004521,120]
[356565388,1742680265866,-157.8357366,0.0004521,120]
[356565389,1742680265875,-157.8357366,0.0004521,120]
[356565390,1742680265885,-157.8357366,0.0004521,120]
[356565391,1742680265894,-157.8357366,0.0004521,120]
[356565392,1742680265902,-157.8357366,0.0004521,120]
[356565393,1742680265911,-157.8357366,0.0004521,120]
[356565394,1742680265921,-157.8357366,0.0004521,120]
[356565395,1742680265930,-157.8357366,0.0004521,120]
[356565396,1742680265941,-157.8357366,0.0004521,120]
[356565397,1742680266044,-157.8357366,0.0004521,120]
[356565398,1742680266054,-157.8357366,0.0004521,120]
[356565399,1742680266064,-157.8357366,0.0004521,120]
[356565400,1742680266075,-157.8357366,0.0004521,120]
[356565401,1742680266085,-157.8357366,0.0004521,120]
[356565402,1742680266094,-157.8357366,0.0004521,120]
[356565403,1742680266104,-157.8357366,0.0004521,120]
[356565404,1742680266113,-157.8357366,0.0004521,120]
[356565405,1742680266123,-157.83,0.0004521,120]
[356565406,1742680266132,-349.86921614,0.0004521,120]
[356565407,1742680266141,-349.86921614,0.0004521,120]
[356565408,1742680266151,-349.86921614,0.0004521,120]
[356565409,1742680266161,-349.86921614,0.0004521,120]
[356565410,1742680266170,-349.86921614,0.0004521,120]
[356565411,1742680266180,-349.86921614,0.0004521,120]
[356565412,1742680266189,-349.86921614,0.0004521,120]
[356565413,1742680266199,-349.86921614,0.0004521,120]
[356565414,1742680266208,-349.86921614,0.0004521,120]
[356565415,1742680266218,-349.86921614,0.0004521,120]
[356565416,1742680266227,-349.86921614,0.0004521,120]
[356565417,1742680266237,-349.86921614,0.0004521,120]
[356565418,1742680266246,-349.86921614,0.0004521,120]
[356565419,1742680266255,-349.86921614,0.0004521,120]
[356565420,1742680266265,-349.86921614,0.0004521,120]
[356565421,1742680266274,-349.86921614,0.0004521,120]
[356565422,1742680266285,-349.86921614,0.0004521,120]
[356565423,1742680266295,-349.86921614,0.0004521,120]
[356565424,1742680266304,-349.86921614,0.0004521,120]
[356565425,1742680266314,-349.86,0.0004521,120]
[356565426,1742680266323,-160.0547307,0.0004521,120]
[356565427,1742680266336,-160.0547307,0.0004521,120]
[356565428,1742680266345,-160.0547307,0.0004521,120]
[356565429,1742680266353,-160.0547307,0.0004521,120]
[356565430,1742680266362,-160.0547307,0.0004521,120]
[356565431,1742680266372,-160.0547307,0.0004521,120]
[356565432,1742680266381,-160.0547307,0.0004521,120]
[356565433,1742680266392,-160.05,0.0004521,120]
[356565434,1742680266401,-157.24675297,0.0004521,120]
[356565435,1742680266411,-157.24675297,0.0004521,120]
[356565436,1742680266421,-157.24675297,0.0004521,120]
[356565437,1742680266431,-157.24675297,0.0004521,120]
[356565438,1742680266441,-157.24675297,0.0004521,120]
[356565439,1742680266450,-157.24675297,0.0004521,120]
[356565440,1742680266459,-157.24675297,0.0004521,120]
[356565441,1742680266469,-157.24675297,0.0004521,120]
[356565442,1742680266479,-157.24675297,0.0004521,120]
[356565443,1742680266489,-157.24675297,0.0004521,120]
[356565444,1742680266498,-157.24675297,0.0004521,120]
[356565445,1742680266508,-157.24675297,0.0004521,120]
[356565446,1742680266517,-157.24675297,0.0004521,120]
[356565447,1742680266527,-157.24675297,0.0004521,120]
[356565448,1742680266537,-157.24675297,0.0004521,120]
[356565449,1742680266546,-157.24675297,0.0004521,120]
[356565450,1742680266555,-157.24675297,0.0004521,120]
[356565451,1742680266565,-157.24675297,0.0004521,120]
[356565452,1742680266574,-157.24,0.0004521,120]
[356565453,1742680266584,-500.0,0.00045246,120]
[356565454,1742680266593,-800.0,0.00045246,120]
[356565455,1742680266602,-2700.0,0.00045246,120]
[356565456,1742680266611,-177.0,0.00045308,90]
[356565457,1742680266620,-2000.0,0.00045331,120]
[356565458,1742680266629,-15623.12927729,0.00045444,2]
[356565459,1742680266638,-602.83,0.00045449,2]
[356565460,1742680266647,-500.0,0.00045479,60]
[356565461,1742680266657,-500.0,0.00045479,120]
[356565462,1742680266666,-500.0,0.00045479,2]
[356565463,1742680266675,-500.0,0.00045479,120]
[356565464,1742680266684,-500.0,0.00045479,120]
[356565465,1742680266693,-1112.04,0.00045479,120]
[356565466,1742680266703,-500.0,0.00045479,120]
[356565467,1742680266712,-500.0,0.00045479,120]
[356565468,1742680266721,-541.66,0.00045479,120]
[356565469,1742680266730,-500.0,0.00045479,7]
[356565470,1742680266738,-500.0,0.00045479,120]
[356565471,1742680266749,-500.0,0.00045479,10]
[356565472,1742680266758,-500.0,0.00045479,120]
[356565473,1742680266769,-500.0,0.00045479,120]
[356565474,1742680266778,-500.0,0.00045479,120]
[356565475,1742680266787,-500.0,0.00045479,120]
[356565476,1742680266795,-523.07,0.00045479,120]
[356565477,1742680266805,-500.0,0.00045479,7]
[356565478,1742680266816,-500.0,0.00045479,120]
[356565479,1742680266825,-157.17562191,0.00045479,120]
[356565480,1742680266834,-2000.0,0.00045479,2]
[356565481,1742680266843,-500.0,0.00045479,120]
[356565482,1742680266854,-500.0,0.00045479,120]
[356565483,1742680266863,-500.0,0.00045479,120]
[356565484,1742680266872,-500.0,0.00045479,120]
[356565485,1742680266881,-216.84,0.00045479,120]
[356565486,1742680266890,-500.0,0.00045479,120]
[356565487,1742680266899,-500.0,0.00045479,120]
[356565488,1742680266908,-500.0,0.00045479,120]
[356565489,1742680266917,-500.0,0.00045479,120]
[356565490,1742680266926,-500.0,0.00045479,120]
[356565491,1742680266935,-1995.08,0.00045479,120]
[356565492,1742680266945,-500.0,0.00045479,120]
[356565493,1742680266955,-500.0,0.00045479,120]
[356565494,1742680266964,-500.0,0.00045479,120]
[356565495,1742680266973,-500.0,0.00045479,120]
[356565496,1742680266983,-500.0,0.00045479,120]
[356565497,1742680266991,-500.0,0.00045479,120]
[356565498,1742680267000,-500.0,0.00045479,120]
[356565499,1742680267010,-500.0,0.00045479,120]
[356565500,1742680267019,-500.0,0.00045479,120]
[356565501,1742680267027,-585.0,0.00045479,120]
[356565502,1742680267037,-500.0,0.00045479,120]
[356565503,1742680267046,-506.53,0.00045479,120]
[356565504,1742680267055,-715.73,0.00045479,120]
[356565505,1742680267064,-500.0,0.00045479,120]
[356565506,1742680267073,-500.0,0.00045479,120]
[356565507,1742680267083,-500.0,0.00045479,120]
[356565508,1742680267092,-500.0,0.00045479,120]
[356565509,1742680267104,-1700.91,0.00045479,120]
[356565510,1742680267115,-749.15,0.00045479,120]
[356565511,1742680267125,-500.0,0.00045479,120]
[356565512,1742680267134,-500.0,0.00045479,120]
[356565513,1742680267144,-14463.29,0.00045479,120]
[356565514,1742680267154,-900.87,0.00045479,2]
[356565515,1742680267165,-500.0,0.00045479,120]
[356565516,1742680267175,-500.0,0.00045479,120]
[356565517,1742680267184,-500.0,0.00045479,120]
[356565518,1742680267194,-500.0,0.00045479,7]
[356565519,1742680267204,-1076.21,0.00045479,120]
[356565520,1742680267214,-474.96877413,0.00045479,120]
[356565521,1742680267224,-722.27,0.00045479,120]
[356565522,1742680267233,-945.13,0.00045479,120]
[356565523,1742680267242,-500.0,0.00045479,100]
[356565524,1742680267253,-500.0,0.00045479,120]
[356565525,1742680267263,-293.88773175,0.00045479,120]
[356565526,1742680267274,-834.39,0.00045479,120]
[356565527,1742680267287,-500.0,0.00045479,120]
[356565528,1742680267296,-500.0,0.00045479,120]
[356565529,1742680267306,-500.0,0.00045479,120]
[356565530,1742680267315,-500.0,0.00045479,120]
[356565531,1742680267327,-500.0,0.00045479,120]
[356565532,1742680267336,-696.25,0.00045479,120]
[356565533,1742680267345,-500.0,0.00045479,120]
[356565534,1742680267356,-500.0,0.00045479,120]
[356565535,1742680267366,-500.0,0.00045479,120]
[356565536,1742680267376,-500.0,0.00045479,120]
[356565537,1742680267385,-500.0,0.00045479,120]
[356565538,1742680267394,-686.72,0.00045479,120]
[356565539,1742680267403,-500.0,0.00045479,120]
[356565540,1742680267413,-500.0,0.00045479,120]
[356565541,1742680267421,-634.13920652,0.00045479,120]
[356565542,1742680267430,-500.0,0.00045479,120]
[356565543,1742680267439,-500.0,0.00045479,120]
[356565544,1742680267449,-500.0,0.00045479,120]
[356565545,1742680267458,-500.0,0.00045479,120]
[356565546,1742680267468,-500.0,0.00045479,120]
[356565547,1742680267477,-500.0,0.00045479,120]
[356565548,1742680267486,-500.0,0.00045479,120]
[356565549,1742680267495,-500.0,0.00045479,120]
[356565550,1742680267505,-909.88,0.00045479,120]
[356565551,1742680267514,-503.41,0.00045479,120]
[356565552,1742680267523,-1424.5,0.00045479,120]
[356565553,1742680267532,-500.0,0.00045479,120]
[356565554,1742680267542,-500.0,0.00045479,120]
[356565555,1742680267551,-500.0,0.00045479,120]
[356565556,1742680267561,-500.0,0.00045479,120]
[356565557,1742680267570,-500.0,0.00045479,120]
[356565558,1742680267580,-500.0,0.00045479,120]
[356565559,1742680267589,-500.0,0.00045479,120]
[356565560,1742680267599,-670.46,0.00045479,120]
[356565561,1742680267608,-500.0,0.00045479,120]
[356565562,1742680267617,-500.0,0.00045479,120]
[356565563,1742680267627,-500.0,0.00045479,120]
[356565564,1742680267636,-500.0,0.00045479,120]
[356565565,1742680267645,-500.0,0.00045479,120]
[356565566,1742680267655,-500.0,0.00045479,120]
[356565567,1742680267664,-602.75,0.00045479,120]
[356565568,1742680267674,-500.0,0.00045479,120]
[356565569,1742680267683,-500.0,0.00045479,120]
[356565570,1742680267693,-500.0,0.00045479,120]
[356565571,1742680267702,-500.0,0.00045479,120]
[356565572,1742680267712,-500.0,0.00045479,120]
[356565573,1742680267721,-500.0,0.00045479,120]
[356565574,1742680267730,-500.0,0.00045479,120]
[356565575,1742680267739,-386.22503185,0.00045479,120]
[356565576,1742680267749,-528.26,0.00045479,120]
[356565577,1742680267758,-500.0,0.00045479,120]
[356565578,1742680267767,-939.41,0.00045479,120]
[356565579,1742680267776,-500.0,0.00045479,120]
[356565580,1742680267786,-500.0,0.00045479,120]
[356565581,1742680267795,-500.0,0.00045479,120]
[356565582,1742680267804,-500.0,0.00045479,120]
[356565583,1742680267907,-800.0,0.0004552,120]
[356565584,1742680267917,-2000.0,0.00045542,120]
[356565585,1742680267927,-176.114,0.00045554,30]
[356565586,1742680267936,-150.0,0.00045554,30]
[356565587,1742680267946,-8996.19286304,0.0004559,2]
[356565588,1742680267955,-334.90304351,0.000456,120]
[356565589,1742680267964,-1936.1986987,0.000456,120]
[356565590,1742680267974,-282.11168189,0.00045717,21]
[356565591,1742680267984,-243.52065725,0.00045753,60]
[356565592,1742680267993,-500.0,0.00045753,120]
[356565593,1742680268003,-500.0,0.00045753,2]
[356565594,1742680268012,-500.0,0.00045753,120]
[356565595,1742680268022,-500.0,0.00045753,120]
[356565596,1742680268031,-1112.04,0.00045753,120]
[356565597,1742680268040,-500.0,0.00045753,120]
[356565598,1742680268050,-500.0,0.00045753,120]
[356565599,1742680268059,-541.66,0.00045753,120]
[356565600,1742680268069,-500.0,0.00045753,7]
[356565601,1742680268079,-500.0,0.00045753,120]
[356565602,1742680268088,-500.0,0.00045753,10]
[356565603,1742680268098,-500.0,0.00045753,120]
[356565604,1742680268107,-408.44,0.00045753,120]
[356565605,1742680268117,-500.0,0.00045753,120]
[356565606,1742680268127,-340.26678414,0.00045753,120]
[356565607,1742680268136,-523.07,0.00045753,120]
[356565608,1742680268145,-500.0,0.00045753,7]
[356565609,1742680268154,-500.0,0.00045753,120]
[356565610,1742680268163,-500.0,0.00045753,120]
[356565611,1742680268172,-500.0,0.00045753,120]
[356565612,1742680268181,-500.0,0.00045753,120]
[356565613,1742680268191,-500.0,0.00045753,120]
[356565614,1742680268201,-500.0,0.00045753,120]
[356565615,1742680268210,-500.0,0.00045753,120]
[356565616,1742680268219,-500.0,0.00045753,120]
[356565617,1742680268229,-316.08397585,0.00045753,120]
[356565618,1742680268238,-500.0,0.00045753,120]
[356565619,1742680268247,-1995.08,0.00045753,120]
[356565620,1742680268257,-500.0,0.00045753,120]
[356565621,1742680268266,-500.0,0.00045753,120]
[356565622,1742680268276,-500.0,0.00045753,120]
[356565623,1742680268288,-500.0,0.00045753,120]
[356565624,1742680268298,-500.0,0.00045753,120]
[356565625,1742680268307,-500.0,0.00045753,120]
[356565626,1742680268317,-500.0,0.00045753,120]
[356565627,1742680268327,-500.0,0.00045753,120]
[356565628,1742680268336,-500.0,0.00045753,120]
[356565629,1742680268345,-585.0,0.00045753,120]
[356565630,1742680268355,-500.0,0.00045753,120]
[356565631,1742680268364,-506.53,0.00045753,120]
[356565632,1742680268374,-715.73,0.00045753,120]
[356565633,1742680268384,-500.0,0.00045753,120]
[356565634,1742680268393,-500.0,0.00045753,120]
[356565635,1742680268402,-500.0,0.00045753,120]
[356565636,1742680268411,-500.0,0.00045753,120]
[356565637,1742680268421,-1700.91,0.00045753,120]
[356565638,1742680268430,-749.15,0.00045753,120]
[356565639,1742680268439,-500.0,0.00045753,120]
[356565640,1742680268449,-500.0,0.00045753,120]
[356565641,1742680268458,-14463.29,0.00045753,120]
[356565642,1742680268467,-900.87,0.00045753,2]
[356565643,1742680268476,-500.0,0.00045753,120]
[356565644,1742680268485,-500.0,0.00045753,120]
[356565645,1742680268495,-500.0,0.00045753,120]
[356565646,1742680268504,-500.0,0.00045753,7]
[356565647,1742680268514,-1076.21,0.00045753,120]
[356565648,1742680268523,-722.27,0.00045753,120]
[356565649,1742680268533,-945.13,0.00045753,120]
[356565650,1742680268542,-500.0,0.00045753,100]
[356565651,1742680268552,-500.0,0.00045753,120]
[356565652,1742680268561,-834.39,0.00045753,120]
[356565653,1742680268571,-500.0,0.00045753,120]
[356565654,1742680268580,-509.66552152,0.00045753,120]
[356565655,1742680268589,-290.78573069,0.00045753,120]
[356565656,1742680268599,-500.0,0.00045753,120]
[356565657,1742680268608,-500.0,0.00045753,120]
[356565658,1742680268617,-696.25,0.00045753,120]
[356565659,1742680268626,-500.0,0.00045753,120]
[356565660,1742680268636,-500.0,0.00045753,120]
[356565661,1742680268645,-500.0,0.00045753,120]
[356565662,1742680268655,-628.90367562,0.00045753,120]
[356565663,1742680268664,-500.0,0.00045753,120]
[356565664,1742680268674,-686.72,0.00045753,120]
[356565665,1742680268684,-500.0,0.00045753,120]
[356565666,1742680268693,-500.0,0.00045753,120]
[356565667,1742680268703,-500.0,0.00045753,120]
[356565668,1742680268712,-500.0,0.00045753,120]
[356565669,1742680268722,-500.0,0.00045753,120]
[356565670,1742680268731,-500.0,0.00045753,120]
[356565671,1742680268741,-260.70632128,0.00045753,120]
[356565672,1742680268750,-500.0,0.00045753,120]
[356565673,1742680268760,-500.0,0.00045753,120]
[356565674,1742680268770,-500.0,0.00045753,120]
[356565675,1742680268780,-909.88,0.00045753,120]
[356565676,1742680268790,-503.41,0.00045753,120]
[356565677,1742680268801,-1424.5,0.00045753,120]
[356565678,1742680268812,-500.0,0.00045753,120]
[356565679,1742680268821,-369.00778114,0.00045753,120]
[356565680,1742680268830,-500.0,0.00045753,120]
[356565681,1742680268840,-500.0,0.00045753,120]
[356565682,1742680268850,-500.0,0.00045753,120]
[356565683,1742680268860,-500.0,0.00045753,120]
[356565684,1742680268870,-500.0,0.00045753,120]
[356565685,1742680268881,-670.46,0.00045753,120]
[356565686,1742680268891,-500.0,0.00045753,120]
[356565687,1742680268901,-500.0,0.00045753,120]
[356565688,1742680268911,-500.0,0.00045753,120]
[356565689,1742680268921,-500.0,0.00045753,120]
[356565690,1742680268932,-500.0,0.00045753,120]
[356565691,1742680268941,-500.0,0.00045753,120]
[356565692,1742680268950,-602.75,0.00045753,120]
[356565693,1742680268960,-500.0,0.00045753,120]
[356565694,1742680268970,-500.0,0.00045753,120]
[356565695,1742680268980,-500.0,0.00045753,120]
[356565696,1742680268989,-500.0,0.00045753,120]
[356565697,1742680268999,-500.0,0.00045753,120]
[356565698,1742680269008,-585.06651999,0.00045753,120]
[356565699,1742680269018,-500.0,0.00045753,120]
[356565700,1742680269027,-528.26,0.00045753,120]
[356565701,1742680269037,-500.0,0.00045753,120]
[356565702,1742680269046,-939.41,0.00045753,120]
[356565703,1742680269055,-500.0,0.00045753,120]
[356565704,1742680269066,-500.0,0.00045753,120]
[356565705,1742680269076,-399.05323949,0.00045753,120]
[356565706,1742680269086,-500.0,0.00045753,120]
[356565707,1742680269096,-3678.21793341,0.00045753,120]
[356565708,1742680269105,-500.0,0.00045794,120]
[356565709,1742680269114,-800.0,0.00045794,120]
[356565710,1742680269124,-2700.0,0.00045794,120]
[356565711,1742680269133,-3233.2286585,0.00045869,2]
[356565712,1742680269143,-4144.91411085,0.000459,30]
[356565713,1742680269153,-150.0,0.000459,30]
[356565714,1742680269163,-150.0,0.000459,30]
[356565715,1742680269173,-150.0,0.000459,30]
[356565716,1742680269182,-150.0,0.000459,30]
[356565717,1742680269192,-150.0,0.000459,30]
[356565718,1742680269202,-150.0,0.000459,30]
[356565719,1742680269211,-161.2267729,0.00045936,2]
[356565720,1742680269220,-530.9927791,0.00045936,2]
[356565721,1742680269229,-5954.4176965,0.00045936,2]
[356565722,1742680269238,-150.0,0.00045959,30]
[356565723,1742680269247,-150.0,0.00045986,30]
[356565724,1742680269256,-2861.43,0.00045999,2]
[356565725,1742680269265,-200.0,0.00045999,120]
[356565726,1742680269275,-50000.0,0.00046,46]
[356565727,1742680269285,-35070.05291283,0.00046,120]
[356565728,1742680269296,-179.70724421,0.00046,120]
[356565729,1742680269306,-3062.93996719,0.00046,30]
[356565730,1742680269315,-3232.30729723,0.00046,120]
[356565731,1742680269324,-1760.4788531,0.00046,120]
[356565732,1742680269334,-276.41,0.00046,90]
[356565733,1742680269344,-500.0,0.00046,120]
[356565734,1742680269353,-550.44,0.00046,39]
[356565735,1742680269364,-550.44,0.00046,39]
[356565736,1742680269374,-550.44,0.00046,39]
[356565737,1742680269383,-550.44,0.00046,39]
[356565738,1742680269392,-550.44,0.00046,39]
[356565739,1742680269401,-550.44,0.00046,39]
[356565740,1742680269411,-550.44,0.00046,39]
[356565741,1742680269420,-550.44,0.00046,39]
[356565742,1742680269430,-550.44,0.00046,39]
[356565743,1742680269439,-550.44,0.00046,39]
[356565744,1742680269449,-550.44,0.00046,39]
[356565745,1742680269458,-550.44,0.00046,39]
[356565746,1742680269469,-150.0,0.00046019,30]
[356565747,1742680269478,-642.85738035,0.00046027,120]
[356565748,1742680269487,-500.0,0.00046027,2]
[356565749,1742680269497,-500.0,0.00046027,120]
[356565750,1742680269507,-500.0,0.00046027,120]
[356565751,1742680269516,-1112.04,0.00046027,120]
[356565752,1742680269526,-500.0,0.00046027,120]
[356565753,1742680269616,-500.0,0.00046027,120]
[356565754,1742680269634,-541.66,0.00046027,120]
[356565755,1742680269648,-500.0,0.00046027,7]
[356565756,1742680269659,-188.51696413,0.00046027,120]
[356565757,1742680269669,-500.0,0.00046027,10]
[356565758,1742680269680,-275.49712422,0.00046027,120]
[356565759,1742680269691,-632.68616675,0.00046027,120]
[356565760,1742680269702,-523.07,0.00046027,120]
[356565761,1742680269714,-500.0,0.00046027,7]
[356565762,1742680269723,-468.27713489,0.00046027,120]
[356565763,1742680269732,-500.0,0.00046027,120]
[356565764,1742680269741,-539.17174013,0.00046027,120]
[356565765,1742680269750,-500.0,0.00046027,120]
[356565766,1742680269760,-500.0,0.00046027,120]
[356565767,1742680269769,-500.0,0.00046027,120]
[356565768,1742680269778,-500.0,0.00046027,120]
[356565769,1742680269787,-500.0,0.00046027,120]
[356565770,1742680269796,-500.0,0.00046027,120]
[356565771,1742680269805,-1995.08,0.00046027,120]
[356565772,1742680269814,-500.0,0.00046027,120]
[356565773,1742680269823,-500.0,0.00046027,120]
[356565774,1742680269834,-500.0,0.00046027,120]
[356565775,1742680269843,-500.0,0.00046027,120]
[356565776,1742680269852,-400.2438461,0.00046027,120]
[356565777,1742680269862,-500.0,0.00046027,120]
[356565778,1742680269874,-500.0,0.00046027,120]
[356565779,1742680269885,-500.0,0.00046027,120]
[356565780,1742680269895,-500.0,0.00046027,120]
[356565781,1742680269907,-585.0,0.00046027,120]
[356565782,1742680269918,-500.0,0.00046027,120]
[356565783,1742680269928,-506.53,0.00046027,120]
[356565784,1742680269938,-715.73,0.00046027,120]
[356565785,1742680269948,-500.0,0.00046027,120]
[356565786,1742680269959,-500.0,0.00046027,120]
[356565787,1742680269968,-500.0,0.00046027,120]
[356565788,1742680269977,-500.0,0.00046027,120]
[356565789,1742680269986,-1700.91,0.00046027,120]
[356565790,1742680269995,-749.15,0.00046027,120]
[356565791,1742680270005,-500.0,0.00046027,120]
[356565792,1742680270014,-500.0,0.00046027,120]
[356565793,1742680270023,-14463.29,0.00046027,120]
[356565794,1742680270033,-900.87,0.00046027,2]
[356565795,1742680270042,-242.04628905,0.00046027,120]
[356565796,1742680270052,-500.0,0.00046027,120]
[356565797,1742680270061,-421.21278834,0.00046027,120]
[356565798,1742680270071,-500.0,0.00046027,7]
[356565799,1742680270081,-1076.21,0.00046027,120]
[356565800,1742680270090,-722.27,0.00046027,120]
[356565801,1742680270100,-945.13,0.00046027,120]
[356565802,1742680270109,-500.0,0.00046027,100]
[356565803,1742680270119,-500.0,0.00046027,120]
[356565804,1742680270128,-834.39,0.00046027,120]
[356565805,1742680270138,-500.0,0.00046027,120]
[356565806,1742680270148,-500.0,0.00046027,120]
[356565807,1742680270157,-228.39559418,0.00046027,120]
[356565808,1742680270166,-696.25,0.00046027,120]
[356565809,1742680270175,-281.04286164,0.00046027,120]
[356565810,1742680270185,-500.0,0.00046027,120]
[356565811,1742680270195,-500.0,0.00046027,120]
[356565812,1742680270205,-500.0,0.00046027,120]
[356565813,1742680270214,-686.72,0.00046027,120]
[356565814,1742680270223,-500.0,0.00046027,120]
[356565815,1742680270233,-393.10952262,0.00046027,120]
[356565816,1742680270242,-428.56284789,0.00046027,120]
[356565817,1742680270251,-500.0,0.00046027,120]
[356565818,1742680270261,-341.15092068,0.00046027,120]
[356565819,1742680270270,-500.0,0.00046027,120]
[356565820,1742680270279,-500.0,0.00046027,120]
[356565821,1742680270292,-500.0,0.00046027,120]
[356565822,1742680270301,-165.77198023,0.00046027,120]
[356565823,1742680270311,-909.88,0.00046027,120]
[356565824,1742680270320,-503.41,0.00046027,120]
[356565825,1742680270330,-1424.5,0.00046027,120]
[356565826,1742680270339,-500.0,0.00046027,120]
[356565827,1742680270348,-500.0,0.00046027,120]
[356565828,1742680270358,-500.0,0.00046027,120]
[356565829,1742680270367,-500.0,0.00046027,120]
[356565830,1742680270377,-500.0,0.00046027,120]
[356565831,1742680270386,-500.0,0.00046027,120]
[356565832,1742680270405,-670.46,0.00046027,120]
[356565833,1742680270420,-500.0,0.00046027,120]
[356565834,1742680270435,-500.0,0.00046027,120]
[356565835,1742680270452,-500.0,0.00046027,120]
[356565836,1742680270468,-499.9268083,0.00046027,120]
[356565837,1742680270481,-500.0,0.00046027,120]
[356565838,1742680270495,-500.0,0.00046027,120]
[356565839,1742680270511,-602.75,0.00046027,120]
[356565840,1742680270528,-500.0,0.00046027,120]
[356565841,1742680270546,-500.0,0.00046027,120]
[356565842,1742680270563,-500.0,0.00046027,120]
[356565843,1742680270580,-500.0,0.00046027,120]
[356565844,1742680270594,-500.0,0.00046027,120]
[356565845,1742680270612,-480.19261175,0.00046027,120]
[356565846,1742680270626,-528.26,0.00046027,120]
[356565847,1742680270639,-500.0,0.00046027,120]
[356565848,1742680270652,-939.41,0.00046027,120]
[356565849,1742680270670,-397.08468592,0.00046027,120]
[356565850,1742680270682,-500.0,0.00046027,120]
[356565851,1742680270697,-363.31242092,0.00046027,120]